{"text_format":"1","workbook":"xlsx","n_sheets":3,"sheets":["CDL Senior","CDL Junior","Sheet3"],"not_rendered":{"charts":0,"images":0,"macros":0,"external_links":0,"defined_names":3,"comments":0,"pivot_tables":0},"unopened":[],"bounds":{"document_bytes":16777216,"sheet_cells":100000,"rows_first":2000,"rows_last":500,"rows_between":2000,"halvings":0,"cell_chars":16384,"cell_head_chars":4096},"cells_cut":0,"cells_raw":0,"read":"whole","date_system":"1900"}

{"sheet":"CDL Senior","index":0,"n_rows":65,"n_cols":36,"rows_kept":65,"cut":false,"hidden":false,"merged":[[0,2,0,4],[0,5,0,7],[0,8,0,10],[0,11,0,13],[0,14,0,16],[0,17,0,19],[0,20,0,22],[0,23,0,25],[0,26,0,28],[0,29,0,31],[0,32,0,34]]}
[null,null,1,null,null,2,null,null,3,null,null,4,null,null,5,null,null,6,null,null,7,null,null,8,null,null,9,null,null,10,null,null,"Totals",null,null,"Poules"]
["Name","Surname","G","S","B","G","S","B","G","S","B","G","S","B","G","S","B","G","S","B","G","S","B","G","S","B","G","S","B","G","S","B","G","S","B"]
["Phil","Haintz",null,null,null,null,null,null,null,null,null,null,null,null," "," "," "," "," "," "," "," "," "," "," "," "," "," "," "," "," "," ",0,0,0]
["Nicholas","Zeuiton",null,null,null,4,null,null,4,null,null,null,null,null,null,null,null,null,null,null,null,null,null,null,null,null,null,null,null,null,null,null,{"$f":"C4+F4+I4+L4+O4+R4+U4+X4+AA4+AD4","v":8},{"$f":"D4+G4+J4+M4+P4+S4+V4+Y4+AB4+AE4","v":0},{"$f":"E4+H4+K4+N4+Q4+T4+W4+Z4+AC4+AF4","v":0}]
["Gene","Andrews",null,null,null,null,null,null,null,null,4,null,null,null,null,null,null,null,null," ",null,null,null,null,null,null,null,null,null,null,null,null,{"$f":"C5+F5+I5+L5+O5+R5+U5+X5+AA5+AD5","v":0},{"$f":"D5+G5+J5+M5+P5+S5+V5+Y5+AB5+AE5","v":0},0]
["Tyler","Reynolds",null,null,null,null,null,null,null,null,null,null,null,null,null,null,null,null,null,null,null,null,null,null,null,null,null,null,null,null,null,null,0,{"$f":"D6+G6+J6+M6+P6+S6+V6+Y6+AB6+AE6","v":0},{"$f":"E6+H6+K6+N6+Q6+T6+W6+Z6+AC6+AF6","v":0}]
["Adam","Reynolds",null,null,null,null,null,null,null,null,null,null,null,null,null,null,null,null,null,null,null,null,null,null,null,null,null,null,null,null,null,null,0,{"$f":"D7+G7+J7+M7+P7+S7+V7+Y7+AB7+AE7","v":0},{"$f":"E7+H7+K7+N7+Q7+T7+W7+Z7+AC7+AF7","v":0}]
["Callum","Foo P P",null,null,null,null,null,null,null,null,null,null,null,null,null,null,null,null,null,null,null,null,null,null,null,null,null,null,null,null,null,null,{"$f":"C8+F8+U8+X8+L8+AA8","v":0},{"$f":"D8+G8+J8+M8+P8+S8+V8+Y8+AB8+AE8","v":0},{"$f":"E8+H8+K8+N8+Q8+T8+W8+Z8+AC8+AF8","v":0}]
["Zoltan","Vilagosh",null,null,null,null,null,null,null,null,null,null,null,null,null,null,null,null,null,null,null,null,null,null,null,null,null,null,null,null,null,null,{"$f":"C9+F9+U9+X9+L9+AA9","v":0},{"$f":"D9+G9+J9+M9+P9+S9+V9+Y9+AB9+AE9","v":0},{"$f":"E9+H9+K9+N9+Q9+T9+W9+Z9+AC9+AF9","v":0}]
["Alexander","Karnowski",null,null,null,null,null,null,null,null,null,null,null,null,null,null,null,null,null,null,null,null,null,null,null,null,null,null,null,null,null,null,{"$f":"C10+F10+I10+L10+O10+R10+U10+X10+AA10+AD10","v":0},{"$f":"D10+G10+J10+M10+P10+S10+V10+Y10+AB10+AE10","v":0},{"$f":"E10+H10+K10+N10+Q10+T10+W10+Z10+AC10+AF10","v":0}]
["Colin","Bosnic",null,3,null,null,null,null,null,null,null,null,null,null,null,null,null,null,null,null,null,null,null,null,null,null,null,null,null,null,null,null,{"$f":"C11+F11+I11+L11+O11+R11+U11+X11+AA11+AD11","v":0},{"$f":"D11+G11+J11+M11+P11+S11+V11+Y11+AB11+AE11","v":3},{"$f":"E11+H11+K11+N11+Q11+T11+W11+Z11+AC11+AF11","v":0}]
["Hugo","Bosnic",4,null,null,null,null,null,null,null,null,null,null,null,null,null,null,null,null,null,null,null,null,null,null,null,null,null,null,null,null,null,{"$f":"C12+F12+I12+L12+O12+R12+U12+X12+AA12+AD12","v":4},0,{"$f":"E12+H12+K12+N12+Q12+T12+W12+Z12+AC12+AF12","v":0}]
["AP","Panecki",null,null,null,null,null,null,null,null,null,null,null,null,null,null,null,null,null,null,null,null,null,null,null,null,null,null,null,null,null,null,{"$f":"C13+F13+I13+L13+O13+R13+U13+X13+AA13+AD13","v":0},{"$f":"D13+G13+J13+M13+P13+S13+V13+Y13+AB13+AE13","v":0},{"$f":"E13+H13+K13+N13+Q13+T13+W13+Z13+AC13+AF13","v":0}]
["David","Pilkington",null,null,null,null,null,null,null,null,null,null,null,null,null,null,null,null,null,null,null,null,null,null,null,null,null,null,null,null,null,null,{"$f":"C14+F14+I14+L14+O14+R14+U14+X14+AA14+AD14","v":0},{"$f":"D14+G14+J14+M14+P14+S14+V14+Y14+AB14+AE14","v":0},{"$f":"E14+H14+K14+N14+Q14+T14+W14+Z14+AC14+AF14","v":0}]
["Nick","Li"," ",4,null,3,null,null,null,5,null,null,null,null,4,null,null,null,null,null,null,null,null,null,null,null,null,null,null,null,null,null,0,0,{"$f":"E15+H15+K15+N15+Q15+T15+W15+Z15+AC15+AF15","v":0}]
["Ed","Ades",null,null,null,null,null,null,null,null,null,null,null,null,null,null,null,null,null,null,null,null,null,null,null,null,null,null,null,null,null,null,{"$f":"C16+F16+I16+L16+O16+R16+U16+X16+AA16+AD16","v":0},0,{"$f":"E16+H16+K16+N16+Q16+T16+W16+Z16+AC16+AF16","v":0}]
["Mark ","Goile",3,null,null,null,4,null,3,null,null,null,null,null,3,null,null,null,null,null,null,null,null,null,null,null,null,null,null,null,null,null,{"$f":"C17+F17+I17+L17+O17+R17+U17+X17+AA17+AD17","v":9},{"$f":"D17+G17+J17+M17+P17+S17+V17+Y17+AB17+AE17","v":4},{"$f":"E17+H17+K17+N17+Q17+T17+W17+Z17+AC17+AF17","v":0}]
["Shane","Dare",null,null,null,1,null,null,2,null,null,null,null,null,2,null,null,null,null,null,null,null,null,null,null,null,null,null,null,null,null,null,{"$f":"C18+F18+I18+L18+O18+R18+U18+X18+AA18+AD18","v":5},{"$f":"D18+G18+J18+M18+P18+S18+V18+Y18+AB18+AE18","v":0},{"$f":"E18+H18+K18+N18+Q18+T18+W18+Z18+AC18+AF18","v":0}]
["Gabriel","Fitzgerald",5,null,null,null,null,null,null,null,null,null,null,null,null,null,null,null,null,null,null,null,null,null,null,null,null,null,null,null,null,null,{"$f":"C19+F19+I19+L19+O19+R19+U19+X19+AA19+AD19","v":5},{"$f":"D19+G19+J19+M19+P19+S19+V19+Y19+AB19+AE19","v":0},{"$f":"E19+H19+K19+N19+Q19+T19+W19+Z19+AC19+AF19","v":0}]
["Callum","Laurenson",2,null,null,null,null,null,null,null,null,null,null,null,null,null,null,null,null,null,null,null,null,null,null,null,null,null,null,null,null,null,{"$f":"C20+F20+I20+L20+O20+R20+U20+X20+AA20+AD20","v":2},{"$f":"D20+G20+J20+M20+P20+S20+V20+Y20+AB20+AE20","v":0},{"$f":"E20+H20+K20+N20+Q20+T20+W20+Z20+AC20+AF20","v":0}]
["Vincent","Corbin",null,null,null,null,null,null,null,1,null,null,null,null,null,null,null,null,null,null,null,null,null,null,null,null,null,null,null,null,null,null,0,{"$f":"D21+G21+J21+M21+P21+S21+V21+Y21+AB21+AE21","v":1},{"$f":"E21+H21+K21+N21+Q21+T21+W21+Z21+AC21+AF21","v":0}]
["Felix","Drescher",1,null,null,null,3,null,null,3,null,null,null,null,null,null,null,null,null,null,null,null,null,null,null,null,null,null,null,null,null,null,{"$f":"C22+F22+I22+L22+O22+R22+U22+X22+AA22+AD22","v":1},{"$f":"D22+G22+J22+M22+P22+S22+V22+Y22+AB22+AE22","v":6},{"$f":"E22+H22+K22+N22+Q22+T22+W22+Z22+AC22+AF22","v":0}]
["Jane","Allardice",null,null,null,null,null,null,null,null,null,null,null,null,null,null,null,null,null,null,null,null,null,null,null,null,null,null,null,null,null,null,{"$f":"C23+F23+I23+L23+O23+R23+U23+X23+AA23+AD23","v":0},0,{"$f":"E23+H23+K23+N23+Q23+T23+W23+Z23+AC23+AF23","v":0}]
["Grace","Bonacina",null,null,4,null,null,3,null,null,2,null,1,null,null,null,null,null,null,null,null,null,null,null,null,null,null,null,null,null,null,null,{"$f":"C24+F24+I24+L24+O24+R24+U24+X24+AA24+AD24","v":0},{"$f":"D24+G24+J24+M24+P24+S24+V24+Y24+AB24+AE24","v":1},{"$f":"E24+H24+K24+N24+Q24+T24+W24+Z24+AC24+AF24","v":9}]
["Ronan","Healy",null,null,null,null,null,4,1,null,null,1,null,null,null,null,null,null,null,null,null,null,null,null,null,null,null,null,null,null,null,null,{"$f":"C25+F25+I25+L25+O25+R25+U25+X25+AA25+AD25","v":2},{"$f":"D25+G25+J25+M25+P25+S25+V25+Y25+AB25+AE25","v":0},{"$f":"E25+H25+K25+N25+Q25+T25+W25+Z25+AC25+AF25","v":4}]
["Connor","Gordon",null,null,null,null,null,null,null,null,null,null,null,null,null,null,null,null,null,null,null,null,null,null,null,null,null,null,null,null,null,null,{"$f":"C26+F26+I26+L26+O26+R26+U26+X26+AA26+AD26","v":0},{"$f":"D26+G26+J26+M26+P26+S26+V26+Y26+AB26+AE26","v":0},{"$f":"E26+H26+K26+N26+Q26+T26+W26+Z26+AC26+AF26","v":0}]
["Louis","Slamowicz",null,null,null,null,null,null,null,null,null,null,null,null,null,null,null,null,null,null,null,null,null,null,null,null,null,null,null,null,null,null,0,{"$f":"D27+G27+J27+M27+P27+S27+V27+Y27+AB27+AE27","v":0},{"$f":"E27+H27+K27+N27+Q27+T27+W27+Z27+AC27+AF27","v":0}]
["Troy","Sutton",null,null,null,null,null,null,null,null,null,4,null,null,null,null,null,null,null,null,null,null,null,null,null,null,null,null,null,null,null,null,{"$f":"C28+F28+I28+L28+O28+R28+U28+X28+AA28+AD28","v":4},{"$f":"D28+G28+J28+M28+P28+S28+V28+Y28+AB28+AE28","v":0},{"$f":"E28+H28+K28+N28+Q28+T28+W28+Z28+AC28+AF28","v":0}]
["Naomi","Bishop",null,null,null,null,null,null,null,null,null,null,null,null,null,null,null,null,null,null,null,null,null,null,null,null,null,null,null,null,null,null,{"$f":"C29+F29+I29+L29+O29+R29+U29+X29+AA29+AD29","v":0},{"$f":"D29+G29+J29+M29+P29+S29+V29+Y29+AB29+AE29","v":0},{"$f":"E29+H29+K29+N29+Q29+T29+W29+Z29+AC29+AF29","v":0}]
["Tim","Stephens",null,null,null,null,null,null,null,null,null,null,null,null,null,null,null,null,null,null,null,null,null,null,null,null,null,null,null,null,null,null,{"$f":"C30+F30+I30+L30+O30+R30+U30+X30+AA30+AD30","v":0},{"$f":"D30+G30+J30+M30+P30+S30+V30+Y30+AB30+AE30","v":0},{"$f":"E30+H30+K30+N30+Q30+T30+W30+Z30+AC30+AF30","v":0}]
["Kim","Luong",null,null,null,null,null,2,null,null,null,null,null,null,null,null,null,null,null,null,null,null,null,null,null,null,null,null,null,null,null,null,{"$f":"C31+F31+I31+L31+O31+R31+U31+X31+AA31+AD31","v":0},{"$f":"D31+G31+J31+M31+P31+S31+V31+Y31+AB31+AE31","v":0},{"$f":"E31+H31+K31+N31+Q31+T31+W31+Z31+AC31+AF31","v":2}]
["Jamie","Kim",null,null,null,null,null,null,null,null,null,null,null,null,null,3,null,null,null,null,null,null,null,null,null,null,null,null,null,null,null,null,{"$f":"C32+F32+I32+L32+O32+R32+U32+X32+AA32+AD32","v":0},{"$f":"D32+G32+J32+M32+P32+S32+V32+Y32+AB32+AE32","v":3},{"$f":"E32+H32+K32+N32+Q32+T32+W32+Z32+AC32+AF32","v":0}]
["Joanne","Ewen",null,null,null,null,null,null,null,null,null,null,null,null,null,null,null,null,null,null,null,null,null,null,null,null,null,null,null,null,null,null,{"$f":"C33+F33+I33+L33+O33+R33+U33+X33+AA33+AD33","v":0},{"$f":"D33+G33+J33+M33+P33+S33+V33+Y33+AB33+AE33","v":0},{"$f":"E33+H33+K33+N33+Q33+T33+W33+Z33+AC33+AF33","v":0}]
["Darcy","Oakley",null,null,null,null,null,null,null,null,null,null,null,null,null,null,null,null,null,null,null,null,null,null,null,null,null,null,null,null,null,null,{"$f":"C34+F34+I34+L34+O34+R34+U34+X34+AA34+AD34","v":0},{"$f":"D34+G34+J34+M34+P34+S34+V34+Y34+AB34+AE34","v":0},{"$f":"E34+H34+K34+N34+Q34+T34+W34+Z34+AC34+AF34","v":0}]
["Rocco","Spinley",null,null,1,null,null,1,null,2,null,null,null,null,null,null,null,null,null,null,null,null,null,null,null,null,null,null,null,null,null,null,{"$f":"C35+F35+I35+L35+O35+R35+U35+X35+AA35+AD35","v":0},{"$f":"D35+G35+J35+M35+P35+S35+V35+Y35+AB35+AE35","v":2},{"$f":"E35+H35+K35+N35+Q35+T35+W35+Z35+AC35+AF35","v":2}]
["Ethan","Du",null,1,null,null,1,null,null,null,null,null,null,null,null,null,null,null,null,null,null,null,null,null,null,null,null,null,null,null,null,null,{"$f":"C36+F36+I36+L36+O36+R36+U36+X36+AA36+AD36","v":0},{"$f":"D36+G36+J36+M36+P36+S36+V36+Y36+AB36+AE36","v":2},{"$f":"E36+H36+K36+N36+Q36+T36+W36+Z36+AC36+AF36","v":0}]
["Hayden","Ford",null,null,null,null,null,null,null,null,null,null,null,null,null,null,null,null,null,null,null,null,null,null,null,null,null,null,null,null,null,null,{"$f":"C37+F37+I37+L37+O37+R37+U37+X37+AA37+AD37","v":0},{"$f":"D37+G37+J37+M37+P37+S37+V37+Y37+AB37+AE37","v":0},0]
["Mara","Chachs",null,null,null,null,null,null,null,null,null,null,null,null,null,null,null,null,null,null,null,null,null,null,null,null,null,null,null,null,null,null,{"$f":"C38+F38+I38+L38+O38+R38+U38+X38+AA38+AD38","v":0},{"$f":"D38+G38+J38+M38+P38+S38+V38+Y38+AB38+AE38","v":0},{"$f":"E38+H38+K38+N38+Q38+T38+W38+Z38+AC38+AF38","v":0}]
["David","Chachs",null,null,null,null,null,null,null,null,null,null,null,null,null,null,null,null,null,null,null,null,null,null,null,null,null,null,null,null,null,null,{"$f":"C39+F39+I39+L39+O39+R39+U39+X39+AA39+AD39","v":0},{"$f":"D39+G39+J39+M39+P39+S39+V39+Y39+AB39+AE39","v":0},{"$f":"E39+H39+K39+N39+Q39+T39+W39+Z39+AC39+AF39","v":0}]
["Matt","Tan",null,null,null,null,null,null,null,null,null,null,null,null,null,null,null,null,null,null,null,null,null,null,null,null,null,null,null,null,null,null,{"$f":"C40+F40+I40+L40+O40+R40+U40+X40+AA40+AD40","v":0},{"$f":"D40+G40+J40+M40+P40+S40+V40+Y40+AB40+AE40","v":0},{"$f":"E40+H40+K40+N40+Q40+T40+W40+Z40+AC40+AF40","v":0}]
["David ","Jin",null,null,null,null,null,null,null,null,null,null,null,null,null,null,null,null,null,null,null,null,null,null,null,null,null,null,null,null,null,null,{"$f":"C41+F41+I41+L41+O41+R41+U41+X41+AA41+AD41","v":0},{"$f":"D41+G41+J41+M41+P41+S41+V41+Y41+AB41+AE41","v":0},{"$f":"E41+H41+K41+N41+Q41+T41+W41+Z41+AC41+AF41","v":0}]
["Benji","Huntsman",null,null,null,null,null,null,null,null,null,null,null,null,null,null,null,null,null,null,null,null,null,null,null,null,null,null,null,null,null,null,{"$f":"C42+F42+I42+L42+O42+R42+U42+X42+AA42+AD42","v":0},{"$f":"D42+G42+J42+M42+P42+S42+V42+Y42+AB42+AE42","v":0},{"$f":"E42+H42+K42+N42+Q42+T42+W42+Z42+AC42+AF42","v":0}]
["Jeremy","Chan",null,null,null,null,null,null,null,null,null,null,null,null,null,null,null,null,null,null,null,null,null,null,null,null,null,null,null,null,null,null,{"$f":"C43+F43+I43+L43+O43+R43+U43+X43+AA43+AD43","v":0},{"$f":"D43+G43+J43+M43+P43+S43+V43+Y43+AB43+AE43","v":0},0]
["Tania","Zhang",null,null,null,null,null,null,null,null,null,null,null,null,null,null,null,null,null,null,null,null,null,null,null,null,null,null,null,null,null,null,{"$f":"C44+F44+I44+L44+O44+R44+U44+X44+AA44+AD44","v":0},{"$f":"D44+G44+J44+M44+P44+S44+V44+Y44+AB44+AE44","v":0},{"$f":"E44+H44+K44+N44+Q44+T44+W44+Z44+AC44+AF44","v":0}]
["Rachel","Muir Smith",null,null,null,null,null,null,null,null,null,null,null,null,null,null,null,null,null,null,null,null,null,null,null,null,null,null,null,null,null,null,{"$f":"C45+F45+I45+L45+O45+R45+U45+X45+AA45+AD45","v":0},{"$f":"D45+G45+J45+M45+P45+S45+V45+Y45+AB45+AE45","v":0},{"$f":"E45+H45+K45+N45+Q45+T45+W45+Z45+AC45+AF45","v":0}]
["Matt","Faria",null,null,null,5,null,null,5,null,null,null,null,null,null,null,null,null,null,null,null,null,null,null,null,null,null,null,null,null,null,null,{"$f":"C46+F46+I46+L46+O46+R46+U46+X46+AA46+AD46","v":10},{"$f":"D46+G46+J46+M46+P46+S46+V46+Y46+AB46+AE46","v":0},0]
["Sarah","Lee",null,null,3,null,null,null,null,null,3,null,3,null,null,1,null,null,null,null,null,null,null,null,null,null,null,null,null,null,null,null,{"$f":"C47+F47+I47+L47+O47+R47+U47+X47+AA47+AD47","v":0},{"$f":"D47+G47+J47+M47+P47+S47+V47+Y47+AB47+AE47","v":4},{"$f":"E47+H47+K47+N47+Q47+T47+W47+Z47+AC47+AF47","v":6}]
["John","Christodolou",null,2,null,2,null,null,null,4,null,null,null,null,1,null,null,null,null,null,null,null,null,null,null,null,null,null,null,null,null,null,{"$f":"C48+F48+I48+L48+O48+R48+U48+X48+AA48+AD48","v":3},{"$f":"D48+G48+J48+M48+P48+S48+V48+Y48+AB48+AE48","v":6},{"$f":"E48+H48+K48+N48+Q48+T48+W48+Z48+AC48+AF48","v":0}]
["Angelica","Del Hierro",null,null,null,null,null,null,null,null,null,null,null,null,null,null,null,null,null,null,null,null,null,null,null,null,null,null,null,null,null,null,{"$f":"C49+F49+I49+L49+O49+R49+U49+X49+AA49+AD49","v":0},{"$f":"D49+G49+J49+M49+P49+S49+V49+Y49+AB49+AE49","v":0},{"$f":"E49+H49+K49+N49+Q49+T49+W49+Z49+AC49+AF49","v":0}]
["Liz","Hardy",null,null,null,null,null,null,null,null,null,null,null,null,null,null,null,null,null,null,null,null,null,null,null,null,null,null,null,null,null,null,{"$f":"C50+F50+I50+L50+O50+R50+U50+X50+AA50+AD50","v":0},{"$f":"D50+G50+J50+M50+P50+S50+V50+Y50+AB50+AE50","v":0},{"$f":"E50+H50+K50+N50+Q50+T50+W50+Z50+AC50+AF50","v":0}]
["Alistair","Watson",null,null,null,null,null,null,null,null,null,null,null,null,null,null,null,null,null,null,null,null,null,null,null,null,null,null,null,null,null,null,{"$f":"C51+F51+I51+L51+O51+R51+U51+X51+AA51+AD51","v":0},{"$f":"D51+G51+J51+M51+P51+S51+V51+Y51+AB51+AE51","v":0},{"$f":"E51+H51+K51+N51+Q51+T51+W51+Z51+AC51+AF51","v":0}]
["Sarah","Macky",null,null,null,null,null,null,null,null,null,null,null,null,null,null,null,null,null,null,null,null,null,null,null,null,null,null,null,null,null,null,{"$f":"C52+F52+I52+L52+O52+R52+U52+X52+AA52+AD52","v":0},{"$f":"D52+G52+J52+M52+P52+S52+V52+Y52+AB52+AE52","v":0},{"$f":"E52+H52+K52+N52+Q52+T52+W52+Z52+AC52+AF52","v":0}]
["Ian","Watkins",null,null,null,null,null,null,null,null,null,null,null,null,null,null,null,null,null,null,null,null,null,null,null,null,null,null,null,null,null,null,{"$f":"C53+F53+I53+L53+O53+R53+U53+X53+AA53+AD53","v":0},{"$f":"D53+G53+J53+M53+P53+S53+V53+Y53+AB53+AE53","v":0},{"$f":"E53+H53+K53+N53+Q53+T53+W53+Z53+AC53+AF53","v":0}]
["Lucia","Ferris",null,null,null,null,null,null,null,null,null,null,null,null,null,null,null,null,null,null,null,null,null,null,null,null,null,null,null,null,null,null,{"$f":"C54+F54+I54+L54+O54+R54+U54+X54+AA54+AD54","v":0},{"$f":"D54+G54+J54+M54+P54+S54+V54+Y54+AB54+AE54","v":0},{"$f":"E54+H54+K54+N54+Q54+T54+W54+Z54+AC54+AF54","v":0}]
["Tim","Brown",null,null,null,null,null,null,null,null,null,null,null,null,null,null,null,null,null,null,null,null,null,null,null,null,null,null,null,null,null,null,{"$f":"C55+F55+I55+L55+O55+R55+U55+X55+AA55+AD55","v":0},{"$f":"D55+G55+J55+M55+P55+S55+V55+Y55+AB55+AE55","v":0},{"$f":"E55+H55+K55+N55+Q55+T55+W55+Z55+AC55+AF55","v":0}]
["Kat","Witt",null,null,null,null,null,null,null,null,null,null,null,null,null,null,null,null,null,null,null,null,null,null,null,null,null,null,null,null,null,null,{"$f":"C56+F56+I56+L56+O56+R56+U56+X56+AA56+AD56","v":0},{"$f":"D56+G56+J56+M56+P56+S56+V56+Y56+AB56+AE56","v":0},{"$f":"E56+H56+K56+N56+Q56+T56+W56+Z56+AC56+AF56","v":0}]
["Naomi","Tan",null,null,null,null,null,null,null,null,null,null,null,null,null,null,null,null,null,null,null,null,null,null,null,null,null,null,null,null,null,null,{"$f":"C57+F57+I57+L57+O57+R57+U57+X57+AA57+AD57","v":0},{"$f":"D57+G57+J57+M57+P57+S57+V57+Y57+AB57+AE57","v":0},{"$f":"E57+H57+K57+N57+Q57+T57+W57+Z57+AC57+AF57","v":0}]
["Rob","Paley",null,null,null,null,null,null,null,null,null,null,null,null,null,null,null,null,null,null,null,null,null,null,null,null,null,null,null,null,null,null,{"$f":"C58+F58+I58+L58+O58+R58+U58+X58+AA58+AD58","v":0},{"$f":"D58+G58+J58+M58+P58+S58+V58+Y58+AB58+AE58","v":0},{"$f":"E58+H58+K58+N58+Q58+T58+W58+Z58+AC58+AF58","v":0}]
["Chantelle","Wickham",null,null,null,null,null,null,null,null,null,null,null,null,null,2,null,null,null,null,null,null,null,null,null,null,null,null,null,null,null,null,{"$f":"C59+F59+I59+L59+O59+R59+U59+X59+AA59+AD59","v":0},{"$f":"D59+G59+J59+M59+P59+S59+V59+Y59+AB59+AE59","v":2},{"$f":"E59+H59+K59+N59+Q59+T59+W59+Z59+AC59+AF59","v":0}]
["Juan","Valero Rodriguez",null,null,null,null,null,null,null,null,null,null,null,null,null,null,null,null,null,null,null,null,null,null,null,null,null,null,null,null,null,null,{"$f":"C60+F60+I60+L60+O60+R60+U60+X60+AA60+AD60","v":0},{"$f":"D60+G60+J60+M60+P60+S60+V60+Y60+AB60+AE60","v":0},{"$f":"E60+H60+K60+N60+Q60+T60+W60+Z60+AC60+AF60","v":0}]
["Ash","Roilke",null,null,null,null,2,null,null,null,null,2,null,null,null,null,null,null,null,null,null,null,null,null,null,null,null,null,null,null,null,null,{"$f":"C61+F61+I61+L61+O61+R61+U61+X61+AA61+AD61","v":2},{"$f":"D61+G61+J61+M61+P61+S61+V61+Y61+AB61+AE61","v":2},{"$f":"E61+H61+K61+N61+Q61+T61+W61+Z61+AC61+AF61","v":0}]
["Charlotte","O'Callaghan",null,null,null,null,null,null,null,null,null,null,null,null,null,null,null,null,null,null,null,null,null,null,null,null,null,null,null,null,null,null,{"$f":"C62+F62+I62+L62+O62+R62+U62+X62+AA62+AD62","v":0},{"$f":"D62+G62+J62+M62+P62+S62+V62+Y62+AB62+AE62","v":0},{"$f":"E62+H62+K62+N62+Q62+T62+W62+Z62+AC62+AF62","v":0}]
["Bella","Bartlett",null,null,null,null,null,null,null,null,1,null,2,null,null,null,null,null,null,null,null,null,null,null,null,null,null,null,null,null,null,null,{"$f":"C63+F63+I63+L63+O63+R63+U63+X63+AA63+AD63","v":0},{"$f":"D63+G63+J63+M63+P63+S63+V63+Y63+AB63+AE63","v":2},{"$f":"E63+H63+K63+N63+Q63+T63+W63+Z63+AC63+AF63","v":1}]
["Jaimee","Raper",null,null,null,null,null,null,null,null,null,null,null,null,null,null,null,null,null,null,null,null,null,null,null,null,null,null,null,null,null,null,{"$f":"C64+F64+I64+L64+O64+R64+U64+X64+AA64+AD64","v":0},{"$f":"D64+G64+J64+M64+P64+S64+V64+Y64+AB64+AE64","v":0},{"$f":"E64+H64+K64+N64+Q64+T64+W64+Z64+AC64+AF64","v":0}]
["Paul","Bongiovanni",null,null,null,null,null,null,null,null,null,3,null,null,null,null,null,null,null,null,null,null,null,null,null,null,null,null,null,null,null,null,{"$f":"C65+F65+I65+L65+O65+R65+U65+X65+AA65+AD65","v":3},{"$f":"D65+G65+J65+M65+P65+S65+V65+Y65+AB65+AE65","v":0},{"$f":"E65+H65+K65+N65+Q65+T65+W65+Z65+AC65+AF65","v":0}]

{"sheet":"CDL Junior","index":1,"n_rows":20,"n_cols":35,"rows_kept":20,"cut":false,"hidden":false,"merged":[]}
["Name","Surname","G","S","B","G","S","B","G","S","B","G","S","B","G","S","B","G","S","B","G","S","B","G","S","B","G","S","B","G","S","B","G","S","B"]
["Kris","Woodrow",6,null,null,null,null,null,null,null,null,null,null,null,null,null,null,null,null,null,null,null,null,null,null,null,null,null,null,null,null,null,{"$f":"C2+F2+I2+L2+O2+R2+U2+X2+AA2+AD2","v":6},{"$f":"D2+G2+J2+M2+P2+S2+V2+Y2+AB2+AE2","v":0},{"$f":"E2+H2+K2+N2+Q2+T2+W2+Z2+AC2+AF2","v":0}]
["Indy","Moir",7,null,null,null,null,null,null,null,null,null,null,null,null,null,null,null,null,null,null,null,null,null,null,null,null,null,null,null,null,null,{"$f":"C3+F3+I3+L3+O3+R3+U3+X3+AA3+AD3","v":7},{"$f":"D3+G3+J3+M3+P3+S3+V3+Y3+AB3+AE3","v":0},{"$f":"E3+H3+K3+N3+Q3+T3+W3+Z3+AC3+AF3","v":0}]
["Martin","Dittman",5,null,null,null,null,null,null,null,null,null,null,null,null,null,null,null,null,null,null,null,null,null,null,null,null,null,null,null,null,null,{"$f":"C4+F4+I4+L4+O4+R4+U4+X4+AA4+AD4","v":5},{"$f":"D4+G4+J4+M4+P4+S4+V4+Y4+AB4+AE4","v":0},{"$f":"E4+H4+K4+N4+Q4+T4+W4+Z4+AC4+AF4","v":0}]
["Thomas","Mazzei",2,null,null,null,null,null,null,null,null,null,null,null,null,null,null,null,null,null,null,null,null,null,null,null,null,null,null,null,null,null,{"$f":"C5+F5+I5+L5+O5+R5+U5+X5+AA5+AD5","v":2},{"$f":"D5+G5+J5+M5+P5+S5+V5+Y5+AB5+AE5","v":0},{"$f":"E5+H5+K5+N5+Q5+T5+W5+Z5+AC5+AF5","v":0}]
["Paul","Augestein",1,null,null,null,null,null,null,null,null,null,null,null,null,null,null,null,null,null,null,null,null,null,null,null,null,null,null,null,null,null,{"$f":"C6+F6+I6+L6+O6+R6+U6+X6+AA6+AD6","v":1},{"$f":"D6+G6+J6+M6+P6+S6+V6+Y6+AB6+AE6","v":0},{"$f":"E6+H6+K6+N6+Q6+T6+W6+Z6+AC6+AF6","v":0}]
["Kirsten","Augestein",3,null,null,null,null,null,null,null,null,null,null,null,null,null,null,null,null,null,null,null,null,null,null,null,null,null,null,null,null,null,{"$f":"C7+F7+I7+L7+O7+R7+U7+X7+AA7+AD7","v":3},{"$f":"D7+G7+J7+M7+P7+S7+V7+Y7+AB7+AE7","v":0},{"$f":"E7+H7+K7+N7+Q7+T7+W7+Z7+AC7+AF7","v":0}]
["Genevieve","Houghton",4,null,null,null,null,null,null,null,null,null,null,null,null,null,null,null,null,null,null,null,null,null,null,null,null,null,null,null,null,null,{"$f":"C8+F8+I8+L8+O8+R8+U8+X8+AA8+AD8","v":4},{"$f":"D8+G8+J8+M8+P8+S8+V8+Y8+AB8+AE8","v":0},{"$f":"E8+H8+K8+N8+Q8+T8+W8+Z8+AC8+AF8","v":0}]
[null,null,null,null,null,null,null,null,null,null,null,null,null,null,null,null,null,null,null,null,null,null,null,null,null,null,null,null,null,null,null,null,{"$f":"C9+F9+I9+L9+O9+R9+U9+X9+AA9+AD9","v":0},{"$f":"D9+G9+J9+M9+P9+S9+V9+Y9+AB9+AE9","v":0},{"$f":"E9+H9+K9+N9+Q9+T9+W9+Z9+AC9+AF9","v":0}]
[null,null,null,null,null,null,null,null,null,null,null,null,null,null,null,null,null,null,null,null,null,null,null,null,null,null,null,null,null,null,null,null,{"$f":"C10+F10+I10+L10+O10+R10+U10+X10+AA10+AD10","v":0},{"$f":"D10+G10+J10+M10+P10+S10+V10+Y10+AB10+AE10","v":0},{"$f":"E10+H10+K10+N10+Q10+T10+W10+Z10+AC10+AF10","v":0}]
[null,null,null,null,null,null,null,null,null,null,null,null,null,null,null,null,null,null,null,null,null,null,null,null,null,null,null,null,null,null,null,null,{"$f":"C11+F11+I11+L11+O11+R11+U11+X11+AA11+AD11","v":0},{"$f":"D11+G11+J11+M11+P11+S11+V11+Y11+AB11+AE11","v":0},{"$f":"E11+H11+K11+N11+Q11+T11+W11+Z11+AC11+AF11","v":0}]
[null,null,null,null,null,null,null,null,null,null,null,null,null,null,null,null,null,null,null,null,null,null,null,null,null,null,null,null,null,null,null,null,{"$f":"C12+F12+I12+L12+O12+R12+U12+X12+AA12+AD12","v":0},{"$f":"D12+G12+J12+M12+P12+S12+V12+Y12+AB12+AE12","v":0},{"$f":"E12+H12+K12+N12+Q12+T12+W12+Z12+AC12+AF12","v":0}]
[null,null,null,null,null,null,null,null,null,null,null,null,null,null,null,null,null,null,null,null,null,null,null,null,null,null,null,null,null,null,null,null,{"$f":"C13+F13+I13+L13+O13+R13+U13+X13+AA13+AD13","v":0},{"$f":"D13+G13+J13+M13+P13+S13+V13+Y13+AB13+AE13","v":0},{"$f":"E13+H13+K13+N13+Q13+T13+W13+Z13+AC13+AF13","v":0}]
[null,null,null,null,null,null,null,null,null,null,null,null,null,null,null,null,null,null,null,null,null,null,null,null,null,null,null,null,null,null,null,null,{"$f":"C14+F14+I14+L14+O14+R14+U14+X14+AA14+AD14","v":0},{"$f":"D14+G14+J14+M14+P14+S14+V14+Y14+AB14+AE14","v":0},{"$f":"E14+H14+K14+N14+Q14+T14+W14+Z14+AC14+AF14","v":0}]
[null,null,null,null,null,null,null,null,null,null,null,null,null,null,null,null,null,null,null,null,null,null,null,null,null,null,null,null,null,null,null,null,{"$f":"C15+F15+I15+L15+O15+R15+U15+X15+AA15+AD15","v":0},{"$f":"D15+G15+J15+M15+P15+S15+V15+Y15+AB15+AE15","v":0},{"$f":"E15+H15+K15+N15+Q15+T15+W15+Z15+AC15+AF15","v":0}]
[null,null,null,null,null,null,null,null,null,null,null,null,null,null,null,null,null,null,null,null,null,null,null,null,null,null,null,null,null,null,null,null,{"$f":"C16+F16+I16+L16+O16+R16+U16+X16+AA16+AD16","v":0},{"$f":"D16+G16+J16+M16+P16+S16+V16+Y16+AB16+AE16","v":0},{"$f":"E16+H16+K16+N16+Q16+T16+W16+Z16+AC16+AF16","v":0}]
[null,null,null,null,null,null,null,null,null,null,null,null,null,null,null,null,null,null,null,null,null,null,null,null,null,null,null,null,null,null,null,null,{"$f":"C17+F17+I17+L17+O17+R17+U17+X17+AA17+AD17","v":0},{"$f":"D17+G17+J17+M17+P17+S17+V17+Y17+AB17+AE17","v":0},{"$f":"E17+H17+K17+N17+Q17+T17+W17+Z17+AC17+AF17","v":0}]
[null,null,null,null,null,null,null,null,null,null,null,null,null,null,null,null,null,null,null,null,null,null,null,null,null,null,null,null,null,null,null,null,{"$f":"C18+F18+I18+L18+O18+R18+U18+X18+AA18+AD18","v":0},{"$f":"D18+G18+J18+M18+P18+S18+V18+Y18+AB18+AE18","v":0},{"$f":"E18+H18+K18+N18+Q18+T18+W18+Z18+AC18+AF18","v":0}]
[null,null,null,null,null,null,null,null,null,null,null,null,null,null,null,null,null,null,null,null,null,null,null,null,null,null,null,null,null,null,null,null,{"$f":"C19+F19+I19+L19+O19+R19+U19+X19+AA19+AD19","v":0},{"$f":"D19+G19+J19+M19+P19+S19+V19+Y19+AB19+AE19","v":0},{"$f":"E19+H19+K19+N19+Q19+T19+W19+Z19+AC19+AF19","v":0}]
[null,null,null,null,null,null,null,null,null,null,null,null,null,null,null,null,null,null,null,null,null,null,null,null,null,null,null,null,null,null,null,null,{"$f":"C20+F20+I20+L20+O20+R20+U20+X20+AA20+AD20","v":0},{"$f":"D20+G20+J20+M20+P20+S20+V20+Y20+AB20+AE20","v":0},{"$f":"E20+H20+K20+N20+Q20+T20+W20+Z20+AC20+AF20","v":0}]

{"sheet":"Sheet3","index":2,"n_rows":0,"n_cols":0,"rows_kept":0,"cut":false,"hidden":false,"merged":[]}